{"text_format":"1","workbook":"xlsx","n_sheets":28,"sheets":["TD LISTA OPERACI","Datos Operaciones seleccionadas","TD CUADRO 1","COPIA TDCUADRO1 ORDENAR CAT.REG","CUADRO 1 ","TD CUADRO 2","Copia TDCuadro 2 para carga SFC","FICHERO CARGA CUADRO2 SFC","CUADRO 2 ","Copia TDCuadro 2 con TSec","LISTAS PERSONALIZADAS","Programas","Fondos","Tasa cofinanciación","Prioridades","Objeticos específicos","Categorías de región","Aplicación art 94 o 95","Métodos de Gestión","Tipología de operación","CAMPO DE INTERVENCIÓN","Forma de ayuda","D. Intervención territorial","D. Actividad económica","D. Ubicación","D. Tema secundario del FSE+","D. Igualdad de género","Macrorregionales y Cuencas M"],"not_rendered":{"charts":0,"images":3,"macros":1,"external_links":2,"defined_names":16,"comments":0,"pivot_tables":3},"unopened":[],"bounds":{"document_bytes":16777216,"sheet_cells":100000,"rows_first":2000,"rows_last":500,"rows_between":2000,"halvings":0,"cell_chars":16384,"cell_head_chars":4096},"cells_cut":0,"cells_raw":0,"read":"whole","date_system":"1900"}

{"sheet":"TD LISTA OPERACI","index":0,"n_rows":37,"n_cols":15,"rows_kept":37,"cut":false,"hidden":true,"merged":[]}
[]
["Programa ",{"$f":"'Datos Operaciones seleccionadas'!B8","v":"FSE+ C.A. La Rioja"}]
["LISTA DE OPERACIONES SELECCIONADAS"]
["Según requerimiento del artículo 49, apartado 3 del Reglamento (UE) 2021/1060"]
["Actualizado el ","DD/MM/AAAA"]
[]
["Código operación","Beneficiario","Contratista","Finalidad operación","Logros previstos o reales","Fecha Inicio","Fecha\nFinalización","Fondo","Objetivo específico","Categoría de región","Porcentaje de cofinanciación","D. Ubicación","País","Campo de intervención","Coste total "]
["Título Programa","(Todas)"]
[]
["Código operación","Beneficiario","Contratista","Finalidad operación","Logros previstos o reales","Fecha Inicio","Fecha\nFinalización","Fondo","Objetivo específico","Categoría de región","Porcentaje de cofinanciación","D. Ubicación","País","Campo de intervención","Suma de Coste subvencionable de la operación aprobada"]
["2023/06/SPD-LA SIERRA-ASPRODEMA NÁJERA","Dirección General de Dependecia Discapacidad y mayores","La Sierra Asprodema","Promover itinerarios de inserción, fomentar y apoyar la inserción laboral a través del empleo de personas con discapacidad.","242",44866,45230,"ESF","ESO4.8","T",0.6,"ES23","ES",153,962955]
["2023/03/SPD-VAREIA-ASPRODEMA","Dirección General de Dependecia Discapacidad y mayores","VAREIA ASPRODEMA","Promover itinerarios de inserción, fomentar y apoyar la inserción laboral a través del empleo de personas con discapacidad.","242",44713,45077,"ESF","ESO4.8","T",0.6,"ES23","ES",153,873571]
["2023/04/SPD-ÁNCORA-CALAHORRA","Dirección General de Dependecia Discapacidad y mayores","ASOCIACIÓN IGUAL A TI. ANCORA","Promover itinerarios de inserción, fomentar y apoyar la inserción laboral a través del empleo de personas con discapacidad.","242",44896,45260,"ESF","ESO4.8","T",0.6,"ES23","ES",153,1504070]
["2023/01/SPD-DOMINGO OCHOA","Dirección General de Dependecia Discapacidad y mayores","ASOCIACIÓN IGUAL A TI. DOMINGO OCHOA","Promover itinerarios de inserción, fomentar y apoyar la inserción laboral a través del empleo de personas con discapacidad.","242",44805,45169,"ESF","ESO4.8","T",0.6,"ES23","ES",153,1652491]
["2023/05/SPD-ASPACE","Dirección General de Dependecia Discapacidad y mayores","ASPACE RIOJA","Promover itinerarios de inserción, fomentar y apoyar la inserción laboral a través del empleo de personas con discapacidad.","242",44866,45230,"ESF","ESO4.8","T",0.6,"ES23","ES",153,1443775]
["2024/01/SPAS","Servicio de Planificación y Acción Social. Consejería de Salud y Políticas Sociales.","CARITAS-CHAVICAR","un programa cuyo objetivo es la formación y capacitación de personas en situación de vulnerabilidad social que habilita y dota de recursos personales y sociales, habilidades y capacidades, que facilitan la promoción individual de estas personas, y previenen o frenan la exclusión social","96",44562,44592,"ESF","ESO4.8","T",0.6,"ES23","ES",153,180512]
["2024/02/SPAS","Servicio de Planificación y Acción Social. Consejería de Salud y Políticas Sociales.","CARITAS-CHAVICAR","un programa cuyo objetivo es la formación y capacitación de personas en situación de vulnerabilidad social que habilita y dota de recursos personales y sociales, habilidades y capacidades, que facilitan la promoción individual de estas personas, y previenen o frenan la exclusión social","96",44927,45291,"ESF","ESO4.8","T",0.6,"ES23","ES",153,180512]
["2024/02/SPD-ARFES","Dirección General de Dependecia Discapacidad y mayores","ARFES","Promover itinerarios de inserción, fomentar y apoyar la inserción laboral a través del empleo de personas con discapacidad.","242",45017,45382,"ESF","ESO4.8","T",0.6,"ES23","ES",153,829426]
["2024/01/SER_CONT CCLL/ISL","Dirección General de Empleo","(en blanco)","contrtación de personas jóvenes desempleadas inscritas en el SNGJ en colaboración con corporaciones locales y Entidades sin áanimo de lucro para eld esarrollo de proyectos de activación para el empleo en áreas de interés general y social.","618",45078,45565,"ESF","ESO4.1","T",0.6,"ES23","ES",136,1531966]
["2024/03/SPD-VAREIA-CENTRO DIA","Dirección General de Dependecia Discapacidad y mayores","VAREIA ASPRODEMA","Atención integral  a personas en situación de dependencia durante el periodo diurno con el objetivo de mejorar o mantener el mejor nivel de autonomía personal y de dependencia y de apoyar a las familias y cuidadores.",139,45078,45443,"ESF","ESO4.11","T",0.6,"ES23","ES",158,440496]
["2024/02/SPD-PUERTA ABIERTA-CENTRO DE DIA","Dirección General de Dependecia Discapacidad y mayores","ARFES- PUERTA ABIERTA","Atención integral  a personas en situación de dependencia durante el periodo diurno con el objetivo de mejorar o mantener el mejor nivel de autonomía personal y de dependencia y de apoyar a las familias y cuidadores.",139,45383,45747,"ESF","ESO4.11","T",0.6,"ES23","ES",158,393972]
["2024/04/CENTRO DIA- ANCORA-CALAHORRA","Dirección General de Dependecia Discapacidad y mayores","ASOCIACION IGUAL A TI.","Atención integral  a personas en situación de dependencia durante el periodo diurno con el objetivo de mejorar o mantener el mejor nivel de autonomía personal y de dependencia y de apoyar a las familias y cuidadores.",139,45261,45595,"ESF","ESO4.11","T",0.6,"ES23","ES",158,721063]
["2024/05/CENTRO DE DIA-ASPACE","Dirección General de Dependecia Discapacidad y mayores","ASPACE RIOJA","Atención integral  a personas en situación de dependencia durante el periodo diurno con el objetivo de mejorar o mantener el mejor nivel de autonomía personal y de dependencia y de apoyar a las familias y cuidadores.",139,45413,45596,"ESF","ESO4.11","T",0.6,"ES23","ES",158,440835]
["2024/05/CENTRO DIA DOMINGO OCHOA","Dirección General de Dependecia Discapacidad y mayores","ASOCIACION IGUAL A TI.","Atención integral  a personas en situación de dependencia durante el periodo diurno con el objetivo de mejorar o mantener el mejor nivel de autonomía personal y de dependencia y de apoyar a las familias y cuidadores.",139,45352,45716,"ESF","ESO4.11","T",0.6,"ES23","ES",158,975697]
["2024/03/SPAS","Servicio de Planificación y Acción Social. Consejería de Salud y Políticas Sociales.","CARITAS-CHAVICAR","un programa cuyo objetivo es la formación y capacitación de personas en situación de vulnerabilidad social que habilita y dota de recursos personales y sociales, habilidades y capacidades, que facilitan la promoción individual de estas personas, y previenen o frenan la exclusión social",96,45292,45657,"ESF","ESO4.8","T",0.6,"ES23","ES",153,180512]
["2024/06/DPD-LA SIERRA-CENTRO DE DIA","Dirección General de Dependecia Discapacidad y mayores","ASPRODEMA","Atención integral  a personas en situación de dependencia durante el periodo diurno con el objetivo de mejorar o mantener el mejor nivel de autonomía personal y de dependencia y de apoyar a las familias y cuidadores.",139,45231,45596,"ESF","ESO4.11","T",0.6,"ES23","ES",158,378217]
["2024/01/SPAC-SIPF","Servicio de Planificación y Acción Social. Consejería de Salud y Políticas Sociales.","ARQUISOCIAL S.L.U","Atencion preventiva con familais",828,45108,45839,"ESF","ESO4.11","T",0.6,"ES23","ES",159,1214000]
["2024/02/SRE_ORIENTACION","Dirección General de Empleo","(en blanco)","Orientación profesional personas desfavorecidas 2024",120,45292,45657,"ESF","ESO4.1","T",0.6,"ES23","ES",134,63100]
["2024/03/SRE_ORIENTACION","Dirección General de Empleo","(en blanco)","Orientación profesional personas SNGJ 2024","618",45292,45322,"ESF","ESO4.1","T",0.6,"ES23","ES",136,63100]
["2024/01/ADER_INTERNACIONALIZACIÓN (2023-2024)","ADER","(en blanco)","Becas de formación en prácticas sobre INTERNACIONALIZACIÓN (2023-2024).","618",45170,45657,"ESF","ESO4.1","T",0.6,"ES23","ES",136,330000]
["2025/01/SRE_ESCUELAS TALLER","Dirección General de Empleo","(en blanco)","realización de proyectos de alternancia entre la formación y el trabajo productivo en actividades de utilidad pública o interés social.","105",45383,45748,"ESF","ESO4.1","T",0.6,"ES23","ES",136,290139]
["2025/02/SRRE_CONTRATACIÓN JÓVENES SNGJ. Convocaatoria 2024","Dirección General de Empleo","(en blanco)","contratación de personas jóvenes desempleadas inscritas en el SNGJ en colaboración con corporaciones locales y Entidades sin áanimo de lucro para que obtengan una práctica profesional mediante la realización de tareas y funciones acordes a su perfil y vinculadas al desarrollo de proyectos de interés general y social, facilitándoles además, una experiencia laboral adecuada a su nivel de estudios.","(en blanco)",45444,45930,"ESF","ESO4.1","T",0.6,"ES23","ES",136,1666890]
["2025/01/SRE_ORIENTACION","Dirección General de Empleo","(en blanco)","Orientación profesional personas desfavorecidas 2025",120,45658,46022,"ESF","ESO4.1","T",0.6,"ES23","ES",134,63100]
["2025/02/SRE_ORIENTACION","Dirección General de Empleo","(en blanco)","Orientación profesional personas SNGJ 2025","618",45658,46022,"ESF","ESO4.1","T",0.6,"ES23","ES",136,63100]
["2025/01/SDyPD_ATENCIÓN TEMPRANA","Servicio de Dependencia, Discapacidad y Mayores. Consejería de Salud y Políticas Sociales.","Varios adjudicatarios","Reducir las consecuencias negativas de los trastornos en el desarrrollo del menor.",828,45352,47209,"ESF","ESO4.11","T",0.6,"ES23","ES",159,4039875]
["2025/03/SRE_CONTRATACIÓN JÓVENES SNGJ. Convocaatoria 2024","Dirección General de Empleo","(en blanco)","contratación de personas jóvenes desempleadas inscritas en el SNGJ en colaboración con corporaciones locales y Entidades sin áanimo de lucro para que obtengan una práctica profesional mediante la realización de tareas y funciones acordes a su perfil y vinculadas al desarrollo de proyectos de interés general y social, facilitándoles además, una experiencia laboral adecuada a su nivel de estudios.","(en blanco)",45627,45930,"ESF","ESO4.1","T",0.6,"ES23","ES",136,793950]
["2025/03/SRE_CONTRATACIÓN JÓVENES SNGJ. Convocatoria 2025","Dirección General de Empleo","(en blanco)","contratación de personas jóvenes desempleadas inscritas en el SNGJ en colaboración con corporaciones locales y Entidades sin áanimo de lucro para que obtengan una práctica profesional mediante la realización de tareas y funciones acordes a su perfil y vinculadas al desarrollo de proyectos de interés general y social, facilitándoles además, una experiencia laboral adecuada a su nivel de estudios.","(en blanco)",45809,46295,"ESF","ESO4.1","T",0.6,"ES23","ES",136,1711695.66]

{"sheet":"Datos Operaciones seleccionadas","index":1,"n_rows":35,"n_cols":46,"rows_kept":35,"cut":false,"hidden":false,"merged":[]}
["Programa:",{"$f":"B8","v":"FSE+ C.A. La Rioja"}]
[]
[]
["DATOS OPERACIONES SELECCIONADAS."]
[]
[]
["CCI Programa","Título Programa","Prioridad","Objetivo específico","Fondo","Categoría de región","Código global de la operación","Descripción de la operación","Operación estratégica\n(SI/NO)","Aplicación art. 94 o art.95","Código común \nmétodos de gestión","Método de Gestión","Tipología de operación","Código operación","Nombre  operación","Beneficiario","Contratista","Finalidad operación","Logros previstos o reales","Fecha Inicio","Fecha\nFinalización","Coste subvencionable de la operación aprobada","Financiación privada nacional","País","Campo de intervención","Forma de ayuda","D. Aplicación Territorial","D. Actividad Económica","D. Ubicación","D. Tema secundario del FSE+ 01","D. Tema secundario del FSE+ 02","D. Tema secundario del FSE+ 03","D. Tema secundario del FSE+ 04","D. Tema secundario del FSE+ 05","D. Tema secundario del FSE+ 06","D. Tema secundario del FSE+ 07","D. Tema secundario del FSE+ 08","D. Tema secundario del FSE+ 09","D. Tema secundario del FSE+ 10","D. Igualdad de Género","D. Macrorregional y de las cuencas marítimas","Importe total del gasto subvencionable declarado por los beneficiarios","Contribución pública total (nacional+comunitaria)","Financiación pública nacional","Contribución de los fondos a las operaciones seleccionadas (EUR)","Porcentaje de cofinanciación"]
["2021ES05SFPR018","FSE+ C.A. La Rioja",2,"ESO4.8","ESF","T",null,"Itinerario de inserción en el centro ocupacional \"la Sierra ASPRODEMA, DE NAJERA\" anualidad 2022-2023","SI","N/A",null,"GI-CONT",12,"2023/06/SPD-LA SIERRA-ASPRODEMA NÁJERA","Programa de Itinerarios de Inserción en Centros Ocupacionales – Contrato CAR/Centro LA SIERRA-ASPRODEMA NÁJERA.","Dirección General de Dependecia Discapacidad y mayores","La Sierra Asprodema","Promover itinerarios de inserción, fomentar y apoyar la inserción laboral a través del empleo de personas con discapacidad.","242",44866,45230,962955,0,"ES",153,"01",33,23,"ES23",null,null,null,null,"05",null,null,null,null,"10","02","11",0,{"$f":"AR8+AS8","v":962955},{"$f":"V8-(AS8+W8)","v":385182},{"$f":"V8*AT8","v":577773},{"$f":"IF(A8=\"2021ES05SFPR009\",85%,IF(A8=\"2021ES05SFPR004\",90%,IF(C8=\"6\",95%,IF(F8=\"M\",40%,IF(F8=\"T\",60%,IF(F8=\"L\",85%,0))))))","v":0.6}]
["2021ES05SFPR018","FSE+ C.A. La Rioja",2,"ESO4.8","ESF","T",null,"Itinerario de inserción en el centro ocupacional \"VAREIA ASPRODEMA, DE LOGROÑO\" anualidad 2022-2023","SI","N/A",null,"GI-CONT",12,"2023/03/SPD-VAREIA-ASPRODEMA","Programa de Itinerarios de Inserción en Centros Ocupacionales – Contrato CAR/Centro VAREIA-ASPRODEMA LOGROÑO.","Dirección General de Dependecia Discapacidad y mayores","VAREIA ASPRODEMA","Promover itinerarios de inserción, fomentar y apoyar la inserción laboral a través del empleo de personas con discapacidad.","242",44713,45077,873571,0,"ES",153,"01",33,23,"ES23",null,null,null,null,"05",null,null,null,null,"10","02","11",0,{"$f":"AR9+AS9","v":873571},{"$f":"V9-(AS9+W9)","v":349428.4},{"$f":"V9*AT9","v":524142.6},{"$f":"IF(A9=\"2021ES05SFPR009\",85%,IF(A9=\"2021ES05SFPR004\",90%,IF(C9=\"6\",95%,IF(F9=\"M\",40%,IF(F9=\"T\",60%,IF(F9=\"L\",85%,0))))))","v":0.6}]
["2021ES05SFPR018","FSE+ C.A. La Rioja",2,"ESO4.8","ESF","T",null,"Itinerario de inserción en el centro ocupacional \"ASOCIACIÓN IGUAL A TI ANCORA CALAHORRA\" anualidad 2022-2023","SI","N/A",null,"GI-CONT",12,"2023/04/SPD-ÁNCORA-CALAHORRA","Programa de Itinerarios de Inserción en Centros Ocupacionales – Contrato CAR/Centro ÁNCORA-CALAHORRA.","Dirección General de Dependecia Discapacidad y mayores","ASOCIACIÓN IGUAL A TI. ANCORA","Promover itinerarios de inserción, fomentar y apoyar la inserción laboral a través del empleo de personas con discapacidad.","242",44896,45260,1504070,0,"ES",153,"01",33,23,"ES23",null,null,null,null,"05",null,null,null,null,"10","02","11",0,1504070,601628,902442,0.6]
["2021ES05SFPR018","FSE+ C.A. La Rioja",2,"ESO4.8","ESF","T",null,"Itinerario de inserción en el centro ocupacional \"ASOCIACIÓN IGUAL A TI CENTRO DOMINGO OCHOA \" anualidad 2022-2023","SI","N/A",null,"GI-CONT",12,"2023/01/SPD-DOMINGO OCHOA","Programa de Itinerarios de Inserción en Centros Ocupacionales – Contrato CAR/Centro DOMINGO OCHOA-ASOCIACIÓN IGUAL A TI, en Logroño.","Dirección General de Dependecia Discapacidad y mayores","ASOCIACIÓN IGUAL A TI. DOMINGO OCHOA","Promover itinerarios de inserción, fomentar y apoyar la inserción laboral a través del empleo de personas con discapacidad.","242",44805,45169,1652491,0,"ES",153,"01",33,23,"ES23",null,null,null,null,"05",null,null,null,null,"10","02","11",0,1652491,660996.4,991494.6,0.6]
["2021ES05SFPR018","FSE+ C.A. La Rioja",2,"ESO4.8","ESF","T",null,"Itinerario de inserción en el centro ocupacional \"ASOCIACIÓN IGUAL A TI ANCORA CALAHORRA\" anualidad 2022-2023","SI","N/A",null,"GI-CONT",12,"2023/05/SPD-ASPACE","Programa de Itinerarios de Inserción en Centros Ocupacionales – Contrato CAR/Centro ASPACE-LA RIOJA.","Dirección General de Dependecia Discapacidad y mayores","ASPACE RIOJA","Promover itinerarios de inserción, fomentar y apoyar la inserción laboral a través del empleo de personas con discapacidad.","242",44866,45230,1443775,0,"ES",153,"01",33,23,"ES23",null,null,null,null,"05",null,null,null,null,"10","02","11",0,1443775,577510,866265,0.6]
["2021ES05SFPR018","FSE+ C.A. La Rioja",2,"ESO4.8","ESF","T",null,"Programa Inclusión Social Activa 2022","NO","N/A",null,"GC-CONC",12,"2024/01/SPAS","Programa Inclusión Social Activa 2022","Servicio de Planificación y Acción Social. Consejería de Salud y Políticas Sociales.","CARITAS-CHAVICAR","un programa cuyo objetivo es la formación y capacitación de personas en situación de vulnerabilidad social que habilita y dota de recursos personales y sociales, habilidades y capacidades, que facilitan la promoción individual de estas personas, y previenen o frenan la exclusión social","96",44562,44592,180512,0,"ES",153,"01",33,23,"ES23",null,null,null,null,"05",null,null,null,null,"10","02","11",0,180512,72204.800000000003,108307.2,0.6]
["2021ES05SFPR018","FSE+ C.A. La Rioja",2,"ESO4.8","ESF","T",null,"Programa Inclusión Social Activa 2023","NO","N/A",null,"GC-CONC",12,"2024/02/SPAS","Programa Inclusión Social Activa 2023","Servicio de Planificación y Acción Social. Consejería de Salud y Políticas Sociales.","CARITAS-CHAVICAR","un programa cuyo objetivo es la formación y capacitación de personas en situación de vulnerabilidad social que habilita y dota de recursos personales y sociales, habilidades y capacidades, que facilitan la promoción individual de estas personas, y previenen o frenan la exclusión social","96",44927,45291,180512,0,"ES",153,"01",33,23,"ES23",null,null,null,null,"05",null,null,null,null,"10","02","11",0,180512,72204.800000000003,108307.2,0.6]
["2021ES05SFPR018","FSE+ C.A. La Rioja",2,"ESO4.8","ESF","T",null,"Itinerario de inserción en el centro ocupacional \"ASOCIACIÓN IGUAL A TI ANCORA CALAHORRA\" anualidad 2022-2023","SI","N/A",null,"GI-CONT",12,"2024/02/SPD-ARFES","Programa de Itinerarios de Inserción en Centros Ocupacionales – Contrato ARFES- LOGROÑO","Dirección General de Dependecia Discapacidad y mayores","ARFES","Promover itinerarios de inserción, fomentar y apoyar la inserción laboral a través del empleo de personas con discapacidad.","242",45017,45382,829426,0,"ES",153,"01",33,23,"ES23",null,null,null,null,"05",null,null,null,null,"10","02","11",0,829426,331770.40000000002,497655.6,0.6]
["2021ES05SFPR018","FSE+ C.A. La Rioja",5,"ESO4.1","ESF","T",null,"Colaboración con corporaciones locales e instituciones sin ánimo de lucro para la realización de proyectos de interés general y social.","NO","N/A",null,"CS","5A","2024/01/SER_CONT CCLL/ISL","Colaboración con corporaciones locales e instituciones sin ánimo de lucro para la realización de proyectos de interés general y social.","Dirección General de Empleo",null,"contrtación de personas jóvenes desempleadas inscritas en el SNGJ en colaboración con corporaciones locales y Entidades sin áanimo de lucro para eld esarrollo de proyectos de activación para el empleo en áreas de interés general y social.","618",45078,45565,1531966,0,"ES",136,"01",33,20,"ES23","01","02",null,"04",null,null,null,null,null,"10","02","11",0,1531966,612786.4,919179.6,0.6]
["2021ES05SFPR018","FSE+ C.A. La Rioja",2,"ESO4.11","ESF","T",null,"Servivio de atención diurna para personas con discapacidad","NO","N/A",null,"GI-CONT",12,"2024/03/SPD-VAREIA-CENTRO DIA","Servivio de atención diurna para personas con discapacidad - Contrato CAR/ Centro ASPRODEMA-VAREIA","Dirección General de Dependecia Discapacidad y mayores","VAREIA ASPRODEMA","Atención integral  a personas en situación de dependencia durante el periodo diurno con el objetivo de mejorar o mantener el mejor nivel de autonomía personal y de dependencia y de apoyar a las familias y cuidadores.",139,45078,45443,440496,0,"ES",158,"01",33,23,"ES23",null,null,null,null,"05",null,null,null,null,"10","02","11",0,440496,176198.40000000002,264297.59999999998,0.6]
["2021ES05SFPR018","FSE+ C.A. La Rioja",2,"ESO4.11","ESF","T",null,"Servivio de atención diurna para personas con discapacidad","NO","N/A",null,"GI-CONT",12,"2024/02/SPD-PUERTA ABIERTA-CENTRO DE DIA","Servivio de atención diurna para personas con discapacidad - Contrato CAR/ Centro ARFES - PUERTA ABIERTA","Dirección General de Dependecia Discapacidad y mayores","ARFES- PUERTA ABIERTA","Atención integral  a personas en situación de dependencia durante el periodo diurno con el objetivo de mejorar o mantener el mejor nivel de autonomía personal y de dependencia y de apoyar a las familias y cuidadores.",139,45383,45747,393972,0,"ES",158,"01",33,23,"ES23",null,null,null,null,"05",null,null,null,null,"10","02","11",0,393972,157588.80000000002,236383.19999999998,0.6]
["2021ES05SFPR018","FSE+ C.A. La Rioja",2,"ESO4.11","ESF","T",null,"Servivio de atención diurna para personas con discapacidad","NO","N/A",null,"GI-CONT",12,"2024/04/CENTRO DIA- ANCORA-CALAHORRA","Servivio de atención diurna para personas con discapacidad - Contrato CAR/ ASONCIACION IGUAL A TI Centro ANCORA CALAHORRA","Dirección General de Dependecia Discapacidad y mayores","ASOCIACION IGUAL A TI.","Atención integral  a personas en situación de dependencia durante el periodo diurno con el objetivo de mejorar o mantener el mejor nivel de autonomía personal y de dependencia y de apoyar a las familias y cuidadores.",139,45261,45595,721063,0,"ES",158,"01",33,23,"ES23",null,null,null,null,"05",null,null,null,null,"10","02","11",0,721063,288425.2,432637.8,0.6]
["2021ES05SFPR018","FSE+ C.A. La Rioja",2,"ESO4.11","ESF","T",null,"Servivio de atención diurna para personas con discapacidad","NO","N/A",null,"GI-CONT",12,"2024/05/CENTRO DE DIA-ASPACE","Servivio de atención diurna para personas con discapacidad - Contrato CAR/ Centro ASPACE","Dirección General de Dependecia Discapacidad y mayores","ASPACE RIOJA","Atención integral  a personas en situación de dependencia durante el periodo diurno con el objetivo de mejorar o mantener el mejor nivel de autonomía personal y de dependencia y de apoyar a las familias y cuidadores.",139,45413,45596,440835,0,"ES",158,"01",33,23,"ES23",null,null,null,null,"05",null,null,null,null,"10","02","11",0,440835,176334,264501,0.6]
["2021ES05SFPR018","FSE+ C.A. La Rioja",2,"ESO4.11","ESF","T",null,"Servivio de atención diurna para personas con discapacidad","NO","N/A",null,"GI-CONT",12,"2024/05/CENTRO DIA DOMINGO OCHOA","Servivio de atención diurna para personas con discapacidad y dependencia  ASOCIACION IGUAL A TI. CENTRO DOMINGO OCHOA","Dirección General de Dependecia Discapacidad y mayores","ASOCIACION IGUAL A TI.","Atención integral  a personas en situación de dependencia durante el periodo diurno con el objetivo de mejorar o mantener el mejor nivel de autonomía personal y de dependencia y de apoyar a las familias y cuidadores.",139,45352,45716,975697,0,"ES",158,"01",33,23,"ES23",null,null,null,null,"05",null,null,null,null,"10","02","11",0,975697,390278.80000000005,585418.19999999995,0.6]
["2021ES05SFPR018","FSE+ C.A. La Rioja",2,"ESO4.8","ESF","T",null,"Programa Inclusión Social Activa 2022","NO","N/A",null,"GC-CONC",12,"2024/03/SPAS","Programa Inclusión Social Activa 2024","Servicio de Planificación y Acción Social. Consejería de Salud y Políticas Sociales.","CARITAS-CHAVICAR","un programa cuyo objetivo es la formación y capacitación de personas en situación de vulnerabilidad social que habilita y dota de recursos personales y sociales, habilidades y capacidades, que facilitan la promoción individual de estas personas, y previenen o frenan la exclusión social",96,45292,45657,180512,0,"ES",153,"01",33,23,"ES23",null,null,null,null,"05",null,null,null,null,"10","02","11",0,180512,72204.800000000003,108307.2,0.6]
["2021ES05SFPR018","FSE+ C.A. La Rioja",2,"ESO4.11","ESF","T",null,"Servivio de atención diurna para personas con discapacidad","NO","N/A",null,"GI-CONT",12,"2024/06/DPD-LA SIERRA-CENTRO DE DIA","Servivio de atención diurna para personas con discapacidad y dependencia  Contrato CAR/ CENTRO ASPRODEMA-LA SIERRA","Dirección General de Dependecia Discapacidad y mayores","ASPRODEMA","Atención integral  a personas en situación de dependencia durante el periodo diurno con el objetivo de mejorar o mantener el mejor nivel de autonomía personal y de dependencia y de apoyar a las familias y cuidadores.",139,45231,45596,378217,0,"ES",158,"01",33,23,"ES23",null,null,null,null,"05",null,null,null,null,"10","02","11",0,378217,151286.80000000002,226930.19999999998,0.6]
["2021ES05SFPR018","FSE+ C.A. La Rioja",7,"ESO4.11","ESF","T",null,"Atencion preventiva con familias","NO","N/A",null,"GC-CONC",12,"2024/01/SPAC-SIPF","Servicio de Intervención Preventiva con Familias","Servicio de Planificación y Acción Social. Consejería de Salud y Políticas Sociales.","ARQUISOCIAL S.L.U","Atencion preventiva con familais",828,45108,45839,1214000,0,"ES",159,"01",33,23,"ES23",null,null,null,null,"05",null,null,null,null,"10","02","11",0,1214000,485600,728400,0.6]
["2021ES05SFPR018","FSE+ C.A. La Rioja",1,"ESO4.1","ESF","T",null,"Orientación profesional personas desfavorecidas","NO","N/A",null,"GD-MP",3,"2024/02/SRE_ORIENTACION","Orientación profesional personas desfavorecidas 2024","Dirección General de Empleo",null,"Orientación profesional personas desfavorecidas 2024",120,45292,45657,63100,0,"ES",134,"01",33,20,"ES23",null,null,null,null,"05",null,null,null,null,"10","02","11",0,63100,25240,37860,0.6]
["2021ES05SFPR018","FSE+ C.A. La Rioja",5,"ESO4.1","ESF","T",null,"Orientación profesional personas SNGJ","NO","N/A",null,"GD-MP",3,"2024/03/SRE_ORIENTACION","Orientación profesional personas SNGJ 2024","Dirección General de Empleo",null,"Orientación profesional personas SNGJ 2024","618",45292,45322,63100,0,"ES",136,"01",33,20,"ES23","01","02",null,"04",null,null,null,null,null,"10","02","11",0,63100,25240,37860,0.6]
["2021ES05SFPR018","FSE+ C.A. La Rioja",5,"ESO4.1","ESF","T",null,"Programa de becas de formación sobre internacionalización para  formar a la población joven convirtiéndolos en profesionales especializados en internacionalización empresarial que puedan integrarse con facilidad en los departamentos de comercio exterior de las empresas","NO","N/A",null,"CS",4,"2024/01/ADER_INTERNACIONALIZACIÓN (2023-2024)","Becas de formación en prácticas sobre INTERNACIONALIZACIÓN (2023-2024).","ADER",null,"Becas de formación en prácticas sobre INTERNACIONALIZACIÓN (2023-2024).","618",45170,45657,330000,0,"ES",136,"01",33,20,"ES23","01","02",null,"04",null,null,null,null,null,"10","02","11",0,330000,132000,198000,0.6]
["2021ES05SFPR018","FSE+ C.A. La Rioja",5,"ESO4.1","ESF","T",null,"Escuelas Taller","SI","N/A",null,"CS",3,"2025/01/SRE_ESCUELAS TALLER","Programa mixto empleo y formación para la mejora del acceso al empleoy adquisición de experiencia a beneficiariosdel Sistema Nacional de Garantía Juvenil.","Dirección General de Empleo",null,"realización de proyectos de alternancia entre la formación y el trabajo productivo en actividades de utilidad pública o interés social.","105",45383,45748,290139,0,"ES",136,"01",33,20,"ES23","01","02",null,"04",null,null,null,null,null,"10","02","11",0,290139,116055.6,174083.4,0.6]
["2021ES05SFPR018","FSE+ C.A. La Rioja",5,"ESO4.1","ESF","T",null,"Contratación de personas jóvenes desempleadas inscritas en el SNGJ en colaboración con corporaciones locales y entidades sin ánimo de lucro. Convocatoria 2024","NO","N/A",null,"CS","5A","2025/02/SRRE_CONTRATACIÓN JÓVENES SNGJ. Convocaatoria 2024","Contratación de personas jóvenes desempleadas inscritas en el SNGJ en colaboración con corporaciones locales y entidades sin ánimo de lucro. Convocatoria 2024","Dirección General de Empleo",null,"contratación de personas jóvenes desempleadas inscritas en el SNGJ en colaboración con corporaciones locales y Entidades sin áanimo de lucro para que obtengan una práctica profesional mediante la realización de tareas y funciones acordes a su perfil y vinculadas al desarrollo de proyectos de interés general y social, facilitándoles además, una experiencia laboral adecuada a su nivel de estudios.",null,45444,45930,1666890,0,"ES",136,"01",33,20,"ES23","01","02",null,"04",null,null,null,null,null,"10","02","11",0,1666890,666756,1000134,0.6]
["2021ES05SFPR018","FSE+ C.A. La Rioja",5,"ESO4.1","ESF","T",null,"Contratación de personas jóvenes desempleadas inscritas en el SNGJ en colaboración con corporaciones locales y entidades sin ánimo de lucro. Convocatoria 2024 adicional","NO","N/A",null,"CS","5A","2025/03/SRE_CONTRATACIÓN JÓVENES SNGJ. Convocaatoria 2024","Contratación de personas jóvenes desempleadas inscritas en el SNGJ en colaboración con corporaciones locales y entidades sin ánimo de lucro. Convocatoria 2024 adicional","Dirección General de Empleo",null,"contratación de personas jóvenes desempleadas inscritas en el SNGJ en colaboración con corporaciones locales y Entidades sin áanimo de lucro para que obtengan una práctica profesional mediante la realización de tareas y funciones acordes a su perfil y vinculadas al desarrollo de proyectos de interés general y social, facilitándoles además, una experiencia laboral adecuada a su nivel de estudios.",null,45627,45930,793950,0,"ES",136,"01",33,20,"ES23","01","02",null,"04",null,null,null,null,null,"10","02","11",0,793950,317580,476370,0.6]
["2021ES05SFPR018","FSE+ C.A. La Rioja",1,"ESO4.1","ESF","T",null,"Orientación profesional personas desfavorecidas","NO","N/A",null,"GD-MP",3,"2025/01/SRE_ORIENTACION","Orientación profesional personas desfavorecidas 2025","Dirección General de Empleo",null,"Orientación profesional personas desfavorecidas 2025",120,45658,46022,63100,0,"ES",134,"01",33,20,"ES23",null,null,null,null,"05",null,null,null,null,"10","02","11",0,{"$f":"AR31+AS31","v":63100},{"$f":"V31-(AS31+W31)","v":25240},{"$f":"V31*AT31","v":37860},{"$f":"IF(A31=\"2021ES05SFPR009\",85%,IF(A31=\"2021ES05SFPR004\",90%,IF(C31=\"6\",95%,IF(F31=\"M\",40%,IF(F31=\"T\",60%,IF(F31=\"L\",85%,0))))))","v":0.6}]
["2021ES05SFPR018","FSE+ C.A. La Rioja",5,"ESO4.1","ESF","T",null,"Orientación profesional personas SNGJ","NO","N/A",null,"GD-MP",3,"2025/02/SRE_ORIENTACION","Orientación profesional personas SNGJ 2025","Dirección General de Empleo",null,"Orientación profesional personas SNGJ 2025","618",45658,46022,63100,0,"ES",136,"01",33,20,"ES23","01","02",null,"04",null,null,null,null,null,"10","02","11",0,63100,25240,37860,0.6]
["2021ES05SFPR018","FSE+ C.A. La Rioja",7,"ESO4.11","ESF","T",null,"Atencion Temprana","NO","N/A",null,"GC-CONC",12,"2025/01/SDyPD_ATENCIÓN TEMPRANA","Servicio de Intervención de servicios sociales en Atención Temprana en centros o servicios de desarrollo infantil","Servicio de Dependencia, Discapacidad y Mayores. Consejería de Salud y Políticas Sociales.","Varios adjudicatarios","Reducir las consecuencias negativas de los trastornos en el desarrrollo del menor.",828,45352,47209,4039875,0,"ES",159,"01",33,23,"ES23",null,null,null,null,"05",null,null,null,null,"10","02","11",0,4039875,1615950,2423925,0.6]
["2021ES05SFPR018","FSE+ C.A. La Rioja",5,"ESO4.1","ESF","T",null,"Contratación de personas jóvenes desempleadas inscritas en el SNGJ en colaboración con corporaciones locales y entidades sin ánimo de lucro. Convocatoria 2025","NO","N/A",null,"CS","5A","2025/03/SRE_CONTRATACIÓN JÓVENES SNGJ. Convocatoria 2025","Contratación de personas jóvenes desempleadas inscritas en el SNGJ en colaboración con corporaciones locales y entidades sin ánimo de lucro. Convocatoria 2025","Dirección General de Empleo",null,"contratación de personas jóvenes desempleadas inscritas en el SNGJ en colaboración con corporaciones locales y Entidades sin áanimo de lucro para que obtengan una práctica profesional mediante la realización de tareas y funciones acordes a su perfil y vinculadas al desarrollo de proyectos de interés general y social, facilitándoles además, una experiencia laboral adecuada a su nivel de estudios.",null,45809,46295,1711695.66,0,"ES",136,"01",33,20,"ES23","01","02",null,"04",null,null,null,null,null,"10","02","11",0,1711695.66,684678.26399999997,1027017.3959999999,0.6]
[null,null,null,null,null,null,null,null,null,null,null,null,null,null,null,null,null,null,null,null,null,{"$f":"SUM(V8:V34)","v":22989019.66}]

{"sheet":"TD CUADRO 1","index":2,"n_rows":4,"n_cols":8,"rows_kept":4,"cut":false,"hidden":true,"merged":[]}
[]
["Programa","(Varios elementos)",null,"1. Si  no aparecen datos, selecciona tu programa"]
[]
["Prioridad","Objetivo específico","Fondo","Categoría de región","Porcentaje de cofinanciación","Suma de Coste subvencionable de la operación aprobada","Suma de Importe total del gasto subvencionable declarado por los beneficiarios","Cuenta de Código operación"]

{"sheet":"COPIA TDCUADRO1 ORDENAR CAT.REG","index":3,"n_rows":5,"n_cols":15,"rows_kept":5,"cut":false,"hidden":true,"merged":[[1,0,1,6],[1,7,1,12]]}
[1,2,3,4,5,6,7,8,9,10,11,12,13]
["Asignación financiera de la prioridad en función del programa",null,null,null,null,null,null,"Datos acumulativos sobre la situación financiera del programa",null,null,null,null,null,null,"1. Arrastra hasta mostrar tantas filas como TD Cuadro 1."]
[]
["Prioridad","Objetivo específico","Fondo","Categoría de región","Base para el cálculo de la contribución de la Unión","Asignación financiera total por fondo y contribución nacional (EUR)","Porcentaje de cofinanciación (%)","Coste total subvencionable de las operaciones seleccionadas (EUR)","Contribución de los fondos a las operaciones seleccionadas (EUR)","Proporción de la asignación financiera total cubierta por las operaciones seleccionadas (%)","Importe total del gasto subvencionable declarado por los beneficiarios","Proporción de la asignación financiera total cubierta por el gasto subvencionable declarado por los beneficiarios (%)","Número de operaciones seleccionadas"]
[{"$f":"'TD CUADRO 1'!A5","v":0},{"$f":"'TD CUADRO 1'!B5","v":0},{"$f":"'TD CUADRO 1'!C5","v":0},{"$f":"'TD CUADRO 1'!D5","v":0},null,null,{"$f":"'TD CUADRO 1'!E5","v":0},{"$f":"'TD CUADRO 1'!F5","v":0},{"$f":"IFERROR(H5*G5,\"\")","v":0},{"$f":"IFERROR(H5/F5,\"\")","v":""},{"$f":"'TD CUADRO 1'!G5","v":0},{"$f":"IFERROR(K5/F5,\"\")","v":""},{"$f":"'TD CUADRO 1'!H5","v":0},null,"Compara/copia las columnas en gris con/en Cuadro 1"]

{"sheet":"CUADRO 1 ","index":4,"n_rows":12,"n_cols":13,"rows_kept":12,"cut":false,"hidden":true,"merged":[[1,0,1,6],[1,7,1,12]]}
[1,2,3,4,5,6,7,8,9,10,11,12,13]
["Asignación financiera de la prioridad en función del programa",null,null,null,null,null,null,"Datos acumulativos sobre la situación financiera del programa"]
[]
["Prioridad","Objetivo específico","Fondo","Categoría de región","Base para el cálculo de la contribución de la Unión","Asignación financiera total por fondo y contribución nacional (EUR)","Porcentaje de cofinanciación (%)","Coste total subvencionable de las operaciones seleccionadas (EUR)","Contribución de los fondos a las operaciones seleccionadas (EUR)","Proporción de la asignación financiera total cubierta por las operaciones seleccionadas (%)","Importe total del gasto subvencionable declarado por los beneficiarios","Proporción de la asignación financiera total cubierta por el gasto subvencionable declarado por los beneficiarios (%)","Número de operaciones seleccionadas"]
[1,"ESO4.1","FSE+","Transición","Total",315702,null,0,{"$f":"IFERROR(H5*G5,\"\")","v":0},{"$f":"IFERROR(H5/F5,\"\")","v":0},null,{"$f":"IFERROR(K5/F5,\"\")","v":0}]
[2,"ESO4.8","FSE+","Transición","Total",5432573.3300000001,null,null,{"$f":"IFERROR(H6*G6,\"\")","v":0},{"$f":"IFERROR(H6/F6,\"\")","v":0},null,{"$f":"IFERROR(K6/F6,\"\")","v":0}]
[2,"ESO4.11","FSE+","Transición","Total",2501371.67,null,null,0,0,null,0]
[5,"ESO4.1","FSE+","Transición","Total",13467914,null,null,0,0,null,0]
[7,"ESO4.11","FSE+","Transición","Total",7080423.8600000003,null,null,0,0,null,0]
[7,"ESO4.12","FSE+","Transición","Total",3149645.14,null,null,0,0,null,0]
["Total",null,"FSE+","Transición",null,31947630,null,null,0,0,null,0]
["Total general",null,null,null,null,31947630,null,null,0,0,null,0]

{"sheet":"TD CUADRO 2","index":5,"n_rows":9,"n_cols":24,"rows_kept":9,"cut":false,"hidden":true,"merged":[]}
[]
["Título Programa","FSE+ C.A. La Rioja"]
[]
["Prioridad","Objetivo específico","Fondo","Categoría de región","Campo de intervención","Forma de ayuda","D. Aplicación Territorial","D. Actividad Económica","D. Ubicación","D. Igualdad de Género","D. Macrorregional y de las cuencas marítimas","D. Tema secundario del FSE+ 01","D. Tema secundario del FSE+ 02","D. Tema secundario del FSE+ 03","D. Tema secundario del FSE+ 04","D. Tema secundario del FSE+ 05","D. Tema secundario del FSE+ 06","D. Tema secundario del FSE+ 07","D. Tema secundario del FSE+ 08","D. Tema secundario del FSE+ 09","D. Tema secundario del FSE+ 10","Suma de Coste subvencionable de la operación aprobada","Suma de Importe total del gasto subvencionable declarado por los beneficiarios","Cuenta de Código operación"]
[1,"ESO4.1","ESF","T",134,"01",33,20,"ES23","02","11",null,null,null,null,null,null,null,null,null,null,126200,0,2]
[2,"ESO4.8","ESF","T",153,"01",33,23,"ES23","02","11",null,null,null,null,null,null,null,null,null,null,7807824,0,9]
[2,"ESO4.11","ESF","T",158,"01",33,23,"ES23","02","11",null,null,null,null,null,null,null,null,null,null,3350280,0,6]
[5,"ESO4.1","ESF","T",136,"01",33,20,"ES23","02","11",null,null,null,null,null,null,null,null,null,null,6450840.6600000001,0,8]
[7,"ESO4.11","ESF","T",159,"01",33,23,"ES23","02","11",null,null,null,null,null,null,null,null,null,null,5253875,0,2]

{"sheet":"Copia TDCuadro 2 para carga SFC","index":6,"n_rows":5,"n_cols":24,"rows_kept":5,"cut":false,"hidden":true,"merged":[]}
[]
[]
[]
["Priority","Specific objective","Fund","Category of region","Intervention field","Form of support","Territorial delivery dimension","Economic activity dimension","Location dimension","ESF+ secondary theme","ESF+ secondary theme\n02","ESF+ secondary theme\n03","ESF+ secondary theme\n04","ESF+ secondary theme\n05","ESF+ secondary theme\n06","ESF+ secondary theme\n07","ESF+ secondary theme\n08","ESF+ secondary theme\n09","ESF+ secondary theme\n10","Gender equality dimension","Macro-regional and sea-basin dimension","Total eligible cost of selected operations (EUR)","Total eligible expenditure declared by beneficiaries","Number of selected operations"]
[{"$f":"'TD CUADRO 2'!A5","v":1},{"$f":"'TD CUADRO 2'!B5","v":"ESO4.1"},{"$f":"'TD CUADRO 2'!C5","v":"ESF"},{"$f":"'TD CUADRO 2'!D5","v":"T"},{"$f":"'TD CUADRO 2'!E5","v":134},{"$f":"'TD CUADRO 2'!F5","v":"01"},{"$f":"'TD CUADRO 2'!G5","v":33},{"$f":"'TD CUADRO 2'!H5","v":20},{"$f":"'TD CUADRO 2'!I5","v":"ES23"},{"$f":"'TD CUADRO 2'!L5","v":0},{"$f":"'TD CUADRO 2'!M5","v":0},{"$f":"'TD CUADRO 2'!N5","v":0},{"$f":"'TD CUADRO 2'!O5","v":0},{"$f":"'TD CUADRO 2'!P5","v":0},{"$f":"'TD CUADRO 2'!Q5","v":0},{"$f":"'TD CUADRO 2'!R5","v":0},{"$f":"'TD CUADRO 2'!S5","v":0},{"$f":"'TD CUADRO 2'!T5","v":0},{"$f":"'TD CUADRO 2'!U5","v":0},{"$f":"'TD CUADRO 2'!J5","v":"02"},{"$f":"'TD CUADRO 2'!K5","v":"11"},{"$f":"'TD CUADRO 2'!V5","v":126200},{"$f":"'TD CUADRO 2'!W5","v":0},{"$f":"'TD CUADRO 2'!X5","v":2}]

{"sheet":"FICHERO CARGA CUADRO2 SFC","index":7,"n_rows":2,"n_cols":25,"rows_kept":2,"cut":false,"hidden":true,"merged":[[1,24,2,28]]}
["Priority","Specific objective","Fund","Category of region","Intervention field","Form of support","Territorial delivery dimension","Economic activity dimension","Location dimension","ESF+ secondary theme","ESF+ secondary theme\n02","ESF+ secondary theme\n03","ESF+ secondary theme\n04","ESF+ secondary theme\n05","ESF+ secondary theme\n06","ESF+ secondary theme\n07","ESF+ secondary theme\n08","ESF+ secondary theme\n09","ESF+ secondary theme\n10","Gender equality dimension","Macro-regional and sea-basin dimension","Total eligible cost of selected operations (EUR)","Total eligible expenditure declared by beneficiaries","Number of selected operations"]
[null,null,null,null,null,null,null,null,null,null,null,null,null,null,null,null,null,null,null,null,null,null,null,null,"Pega los datos de Copia TDCuadro2 para carga SFC aquí. \n¡¡¡Pegalos como valor¡¡¡"]

{"sheet":"CUADRO 2 ","index":8,"n_rows":3,"n_cols":24,"rows_kept":3,"cut":false,"hidden":true,"merged":[[0,0,0,3],[0,21,0,23],[1,0,2,0],[1,1,2,1],[1,2,2,2],[1,3,2,3],[1,21,2,21],[1,22,2,22],[1,23,2,23],[1,9,1,18],[0,4,0,20]]}
["Características del gasto",null,null,null,"Dimensión de categorización",null,null,null,null,null,null,null,null,null,null,null,null,null,null,null,null,"Datos financieros"]
["Prioridad","Objetivo específico","Fondo","Categoría de región",1,2,3,4,5,6,null,null,null,null,null,null,null,null,null,7,8,"Coste total subvencionable de las operaciones seleccionadas (EUR)","Importe total del gasto subvencionable declarado por los beneficiarios","Número de operaciones seleccionadas"]
[null,null,null,null,"Campo de intervención","Forma de ayuda","Dimensión de la aplicación territorial","Dimensión de la actividad económica","Dimensión de ubicación","Tema secundario del FSE+ 01","Tema secundario del FSE+ 02","Tema secundario del FSE+ 03","Tema secundario del FSE+ 04","Tema secundario del FSE+ 05","Tema secundario del FSE+ 06","Tema secundario del FSE+ 07","Tema secundario del FSE+ 08","Tema secundario del FSE+ 09","Tema secundario del FSE+ 10","Dimensión de igualdad de género","Dimensión macrorregional y de las cuencas marítimas"]

{"sheet":"Copia TDCuadro 2 con TSec","index":9,"n_rows":4,"n_cols":24,"rows_kept":4,"cut":false,"hidden":true,"merged":[]}
[]
[]
[]
["Priority","Specific objective","Fund","Category of region","Intervention field","Form of support","Territorial delivery dimension","Economic activity dimension","Location dimension","ESF+ secondary theme","ESF+ secondary theme\n02","ESF+ secondary theme\n03","ESF+ secondary theme\n04","ESF+ secondary theme\n05","ESF+ secondary theme\n06","ESF+ secondary theme\n07","ESF+ secondary theme\n08","ESF+ secondary theme\n09","ESF+ secondary theme\n10","Gender equality dimension","Macro-regional and sea-basin dimension","Total eligible cost of selected operations (EUR)","Total eligible expenditure declared by beneficiaries","Number of selected operations"]

{"sheet":"LISTAS PERSONALIZADAS","index":10,"n_rows":3,"n_cols":2,"rows_kept":3,"cut":false,"hidden":true,"merged":[]}
[]
["OBJETIVOS ESPECÍFICOS","ESO4.1;ESO4.2;ESO4.3;ESO4.4;ESO4.5;ESO4.6;ESO4.7;ESO4.8;ESO4.9;ESO4.10;ESO4.11;ESO4.12;ESO4.13"]
["REGIONES","M;T;L;O"]

{"sheet":"Programas","index":11,"n_rows":23,"n_cols":2,"rows_kept":23,"cut":false,"hidden":true,"merged":[]}
["CCI","TÍTULO PROGRAMA"]
["2021ES05SFPR001","FSE+ Empleo Juvenil "]
["2021ES05SFPR002","FSE+ de Educación y Formación, Empleo y  Economía Social "]
["2021ES05SFPR003","FSE+ de Inclusión Social, Garantía Infantil y Lucha Contra la Pobreza "]
["2021ES05SFPR004","FSE+ de Asistencia Material Básica "]
["2021ES05SFPR005","FSE+ C.A. Andalucía "]
["2021ES05SFPR006","FSE+ C.A. Aragón "]
["2021ES05SFPR007 ","FSE+  Principado de Asturias "]
["2021ES05SFPR008","FSE+ C.A. Illes Balears "]
["2021ES05SFPR009 ","FSE+ C.A. Canarias "]
["2021ES05SFPR010 ","FSE+ C.A. Cantabria "]
["2021ES05SFPR011 ","FSE+ C.A. Cataluña "]
["2021ES05SFPR012","FSE+ C.A. Castilla-La Mancha "]
["2021ES05SFPR013 ","FSE+ C.A. Castilla y León"]
["2021ES05SFPR014","FSE+ Ciudad A. de Ceuta "]
["2021ES05SFPR015","FSE+ Comunitat Valenciana"]
["2021ES05SFPR016","FSE+ C.A. Extremadura "]
["2021ES05SFPR017","FSE+ C.A. Galicia "]
["2021ES05SFPR018","FSE+ C.A. La Rioja"]
["2021ES05SFPR019","FSE+ C. de Madrid "]
["2021ES05SFPR020","FSE+ Ciudad A. de Melilla  "]
["2021ES05SFPR021","FSE+ Región de Murcia"]
["2021ES05SFPR022","FSE+ C. Foral de Navarra"]

{"sheet":"Fondos","index":12,"n_rows":2,"n_cols":2,"rows_kept":2,"cut":false,"hidden":true,"merged":[]}
["CÓDIGO","DESCRIPCIÓN"]
["ESF","ESF+"]

{"sheet":"Tasa cofinanciación","index":13,"n_rows":9,"n_cols":5,"rows_kept":9,"cut":false,"hidden":true,"merged":[]}
[]
[]
[null,null,null,"CODIGO","Tasa de cofinanciación"]
[null,null,null,0.85,"Menos desarrolladas"]
[null,null,null,0.6,"Transición"]
[null,null,null,0.4,"Más desarrolladas"]
[null,null,null,0.85,"Regiones ultraperiféricas o regiones septentrionales escasamente pobladas"]
[null,null,null,0.9,"BASICO"]
[null,null,null,0.95,"Prioridad 6"]

{"sheet":"Prioridades","index":14,"n_rows":9,"n_cols":2,"rows_kept":9,"cut":false,"hidden":true,"merged":[]}
["CÓDIGO","PRIORIDAD"]
[1,"Empleo, adaptabilidad, emprendimiento y economía social - FSE+"]
[2,"Inclusión social - FSE+ "]
[3,"Educación y formación - FSE+ "]
[4,"Lucha contra la privación material - FSE+ "]
[5,"Empleo juvenil - FSE+"]
[6,"Acciones sociales innovadoras - FSE+ "]
[7,"Garantía Infantil - FSE+ "]
[8,"Empleo, inclusión social y educación RUP - FSE+ RUP 85%"]

{"sheet":"Objeticos específicos","index":15,"n_rows":14,"n_cols":2,"rows_kept":14,"cut":false,"hidden":true,"merged":[]}
["CÓDIGO","OBJETIVO ESPECÍFICO"]
["ESO4.1","a) mejorar el acceso al empleo y las medidas de activación para el empleo de los demandantes de empleo, en particular de los jóvenes, especialmente mediante la aplicación de la Garantía Juvenil, los desempleados de larga duración y los grupos desfavorecidos, así como de las personas inactivas, así como mediante la promoción del empleo por cuenta propia y la economía social "]
["ESO4.2","b) modernizar las instituciones y los servicios del mercado de trabajo para evaluar y prever las necesidades de capacidades y garantizar una asistencia oportuna y personalizada y el apoyo a la adecuación entre la oferta y la demanda en el mercado de trabajo,  las transiciones y la movilidad;"]
["ESO4.3","c) promover una participación equilibrada de género en el mercado de trabajo, unas condiciones de trabajo equitativas y una mejora del equilibrio entre la vida laboral y la familiar, en particular mediante el acceso a unos servicios asequibles de atención a la infancia y de atención a personas dependientes;"]
["ESO4.4","d) promover la adaptación de los trabajadores, las empresas y los emprendedores al cambio, el envejecimiento activo y saludable y un entorno de trabajo saludable y bien adaptado que aborde los riesgos para la salud;"]
["ESO4.5","e) mejorar la calidad, inclusividad, eficacia y pertinencia para el mercado laboral de los sistemas de educación y formación, también mediante la validación del aprendizaje no formal e informal, para apoyar la adquisición de competencias clave, incluidas las capacidades empresariales y digitales, y promoviendo la introducción de sistemas de formación dual y de formación de aprendices;"]
["ESO4.6","f) promover la igualdad de acceso a una educación y una formación de calidad e inclusivas y su culminación, en particular para los grupos desfavorecidos, desde la educación infantil y cuidados de la primera infancia, pasando por la educación y la formación generales y profesionales, hasta la educación superior, así como la educación y el aprendizaje de las personas adultas, facilitando también la movilidad para el aprendizaje para todos y la accesibilidad de las personas con discapacidad;"]
["ESO4.7","g) promover el aprendizaje permanente, en particular mediante oportunidades para todos de mejora y reciclaje flexibles de las capacidades teniendo en cuenta las capacidades empresariales y digitales, una mejor previsión de los cambios y nuevos requisitos de capacidades, habida cuenta de las necesidades del mercado de trabajo, facilitando las transiciones profesionales y promoviendo la movilidad profesional"]
["ESO4.8","h) fomentar la inclusión activa al objeto de promover la igualdad de oportunidades, la no discriminación y la participación activa, y mejorar la empleabilidad, en particular para los grupos desfavorecidos;"]
["ESO4.9","i) promover la integración socioeconómica de los nacionales de terceros países, incluidos los migrantes;"]
["ESO4.10","j) promover la integración socioeconómica de las comunidades marginadas, como la población romaní;"]
["ESO4.11","k) mejorar la igualdad y la oportunidad del acceso a unos servicios de calidad, sostenibles y asequibles, incluidos los servicios que promueven el acceso a la vivienda y a una atención centrada en las personas, incluida la asistencia sanitaria; modernizar los sistemas de protección social, también fomentando el acceso a la protección social, con especial atención a los menores y los grupos desfavorecidos; mejorar la accesibilidad, también para personas con discapacidad, la efectividad y la resiliencia de los sistemas de asistencia sanitaria y de los servicios de cuidados de larga duración;"]
["ESO4.12","l) promover la integración social de las personas en riesgo de pobreza o exclusión social, incluidas las personas más desfavorecidas y la población infantil;"]
["ESO4.13","m) hacer frente a la privación material mediante alimentos y/o prestación de asistencia material básica a las personas más desfavorecidas, en particular a los menores, y establecer medidas de acompañamiento que apoyen su inclusión social."]

{"sheet":"Categorías de región","index":16,"n_rows":5,"n_cols":4,"rows_kept":5,"cut":false,"hidden":true,"merged":[]}
["CÓDIGO SFC","CATEGORÍAS DE REGIÓN","Código FSEPLUS","CATEGORÍA DE REGIÓN"]
["L","Less Developed","MeD","Menos desarrolladas"]
["T","Transition","EnT","Transición"]
["M","More Developed","MaD","Más desarrolladas"]
["O","Outermost or Northern Sparsely Populated","RUP","Regiones ultraperiféricas o regiones septentrionales escasamente pobladas"]

{"sheet":"Aplicación art 94 o 95","index":17,"n_rows":6,"n_cols":2,"rows_kept":6,"cut":false,"hidden":true,"merged":[]}
["CÓDIGO","ARTÍCULO 94 o  95 "]
["N/A","No aplican art. 94 ni art. 95"]
["ART94-PRO","Artículo 94. Programa. Apéndice 1."]
["ART94-REG","Artículo 94. Reglamento Delegado."]
["ART95-PRO","Artículo 95. Programa. Apéndice 1."]
["ART95-REG","Artículo 95. Reglamento Delegado."]

{"sheet":"Métodos de Gestión","index":18,"n_rows":8,"n_cols":2,"rows_kept":8,"cut":false,"hidden":true,"merged":[]}
["CÓDIGO","MÉTODO DE GESTIÓN"]
["GD-ED","Gestión directa: Ejecución directa"]
["GD-CONV","Gestión directa: Convenios"]
["GD-ENC","Gestión directa: Encomienda de gestión"]
["GD-MP","Gestión directa: Encargo a medios propios"]
["GC-CONC","Gestión directa: Conciertos"]
["GI-CONT","Gestión Indirecta: Contrato"]
["CS","Convocatoria de subvenciones"]

{"sheet":"Tipología de operación","index":19,"n_rows":26,"n_cols":2,"rows_kept":26,"cut":false,"hidden":true,"merged":[]}
["CODIGO","TIPOLOGÍA DE OPERACIÓN"]
["1A","Formación a lo largo de la vida laboral "]
["1B","Formación Profesional"]
["1C","Formación de Personal Investigador y Ayudas Predoctorales e impulso a la investigación"]
[2,"Itinerarios Integrados"]
[3,"Orientación académica y/o profesional"]
[4,"Becas y ayudas para la educación y la formación"]
["5A","Ayudas para el fomento de la contratación"]
["5B","Bonificaciones y reducciones de cuotas a la Seguridad Social"]
["5C","Ayudas para el fomento del empleo protegido"]
[6,"Apoyo a los emprendedores y a la creación de empresas"]
["7A","Ayudas a la movilidad geográfica y funcional de trabajadores"]
["7B","Ayudas para mejoras de sistemas en las empresas"]
[8,"Iniciativas locales de empleo, pactos territoriales y otras ayudas en el ámbito local"]
[9,"Acciones frente al abandono escolar"]
[10,"Innovación social"]
[11,"Ayudas a redes y asociaciones"]
[12,"Impulso y promoción de la conciliación de la vida laboral y familia, así como de la igualdad de oportunidades, de la igualdad de trato, de la no discriminación y del fomento de la autonomía personal"]
["13A","Actualizaciones curriculares y de los catálogos de cualificaciones"]
["13B","Mejora del funcionamiento y calidad del Sistema Educativo y de la Formación Profesional"]
[14,"Actuaciones de modernización y mejora de los servicios de empleo y mercado de trabajo"]
[15,"Provisiones de ayuda de alimentos y productos básicos, así como medidas sociolaborales de acompañamiento que se recogen en el Programa Básico"]
[16,"Acciones de carácter socio-sanitario "]
[17,"Intervenciones centradas en la lucha para erradicar la exclusión de vivienda"]
[18,"Medidas de intervención directa y de los servicios sociales"]
["Pendiente","Requiere nueva tipología"]

{"sheet":"CAMPO DE INTERVENCIÓN","index":20,"n_rows":58,"n_cols":2,"rows_kept":58,"cut":false,"hidden":true,"merged":[]}
["CODIGO","CAMPO DE INTERVENCIÓN"]
[121,"Infraestructuras para la educación y el cuidado de la primera infancia"]
[122,"Infraestructuras para la enseñanza primaria y secundaria"]
[123,"Infraestructuras para la enseñanza superior"]
[124,"Infraestructuras para la educación y la formación profesional y el aprendizaje de adultos"]
[125,"Infraestructuras de vivienda para migrantes, refugiados y personas bajo protección internacional o que soliciten protección internacional"]
[126,"Infraestructuras de vivienda (para personas distintas de los migrantes, refugiados y personas bajo protección internacional o que soliciten protección internacional)"]
[127,"Otras infraestructuras sociales que contribuyen a la inclusión social en la comunidad"]
[128,"Infraestructuras sanitarias "]
[129,"Equipos sanitarios "]
[130,"Bienes muebles para servicios sanitarios"]
[131,"Digitalización en el sector sanitario "]
[132,"Equipos y suministros críticos necesarios para hacer frente a una situación de emergencia "]
[133,"Infraestructuras de acogida temporal para migrantes, refugiados y personas bajo protección internacional o que soliciten protección internacional"]
[134,"Medidas para mejorar el acceso al empleo "]
[135,"Medidas para fomentar el acceso al empleo de los desempleados de larga duración "]
[136,"Ayuda específica para el empleo juvenil y la integración socioeconómica de los jóvenes"]
[137,"Apoyo al trabajo por cuenta propia y a la creación de empresas"]
[138,"Apoyo para la economía social y las empresas sociales"]
[139,"Medidas para modernizar y reforzar las instituciones y servicios del mercado laboral para evaluar y anticipar las necesidades en materia de capacidades y garantizar una asistencia personalizada y oportuna"]
[140,"Apoyo a la adecuación entre la demanda y la oferta de empleo y las transiciones en el mercado laboral "]
[141,"Apoyo a la movilidad laboral"]
[142,"Medidas para promover la participación de las mujeres y reducir la segregación de género en el mercado laboral"]
[143,"Medidas de fomento del equilibrio entre vida privada y vida laboral, incluido el acceso a los servicios de guardería y de atención a las personas dependientes"]
[144,"Medidas para un entorno de trabajo sano y bien adaptado para hacer frente a los riesgos para la salud, incluida la promoción de la actividad física"]
[145,"Apoyo al desarrollo de las capacidades digitales"]
[146,"Apoyo a la adaptación al cambio de trabajadores, empresas y emprendedores"]
[147,"Medidas para fomentar el envejecimiento activo y saludable"]
[148,"Apoyo a la educación y el cuidado de la primera infancia (excluidas las infraestructuras)"]
[149,"Apoyo a la enseñanza primaria y secundaria (excluidas las infraestructuras)"]
[150,"Apoyo a la enseñanza terciaria (excluidas las infraestructuras)"]
[151,"Apoyo a la educación de personas adultas (excluidas las infraestructuras)"]
[152,"Medidas para promover la igualdad de oportunidades y la participación activa en la sociedad"]
[153,"Vías de integración y reintegración en el mundo laboral de las personas desfavorecidas"]
[154,"Medidas destinadas a mejorar el acceso de colectivos marginados como los gitanos a la educación y el empleo, y a promover su inclusión social"]
[155,"Apoyo a la sociedad civil activa con las comunidades marginadas, como la gitana"]
[156,"Acciones específicas destinadas a aumentar la participación de nacionales de terceros países en el empleo"]
[157,"Medidas para la integración social de los nacionales de terceros países"]
[158,"Medidas para mejorar el acceso equitativo y oportuno a servicios de calidad, sostenibles y asequibles"]
[159,"Medidas para mejorar la prestación de servicios locales y familiares"]
[160,"Medidas para mejorar la accesibilidad, la eficacia y la resiliencia de los sistemas sanitarios (excluidas las infraestructuras)"]
[161,"Medidas destinadas a mejorar el acceso a los cuidados de larga duración (excluidas las infraestructuras)"]
[162,"Medidas para modernizar los sistemas de protección social, incluido el fomento del acceso a la protección social"]
[163,"Promoción de la integración social de personas en riesgo de pobreza o exclusión social, en particular las más desfavorecidas y los niños"]
[164,"Subsanar las carencias materiales de los más desfavorecidos mediante la provisión de alimentos o asistencia material, incluidas medidas de acompañamiento."]
[170,"Mejora de la capacidad de las autoridades responsables de los programas y de los organismos vinculados a la ejecución de los Fondos"]
[171,"Mejora de la cooperación con socios tanto internos como externos al Estado miembro "]
[172,"Financiación cruzada en el marco del FEDER (apoyo a acciones asimilables a las del FSE+ necesarias para la ejecución satisfactoria de la parte del FEDER de la operación y relacionadas directamente con ella)."]
[173,"Mejora de la capacidad institucional de las autoridades públicas y las partes interesadas para implementar los proyectos e iniciativas de cooperación territorial en un contexto transfronterizo, transnacional, marítimo e interregional"]
[174,"Interreg: gestión del cruce fronterizo y gestión de la movilidad y la migración "]
[175,"Regiones ultraperiféricas: compensación de los costes adicionales derivados del déficit de accesibilidad y la fragmentación territorial"]
[176,"Regiones ultraperiféricas: acción específica de compensación de los costes adicionales derivados de factores relativos al tamaño del mercado"]
[177,"Regiones ultraperiféricas: ayudas para compensar los costes adicionales derivados de las condiciones climáticas y las dificultades del terreno"]
[178,"Regiones ultraperiféricas: aeropuertos "]
[179,"Información y comunicación"]
[180,"Preparación, ejecución, seguimiento y control"]
[181,"Evaluación y estudios, recogida de datos"]
[182,"Refuerzo de la capacidad de las autoridades de los Estados miembros, los beneficiarios y los socios pertinentes"]

{"sheet":"Forma de ayuda","index":21,"n_rows":7,"n_cols":2,"rows_kept":7,"cut":false,"hidden":true,"merged":[]}
["CODIGO","FORMA DE AYUDA"]
["01","Subvención"]
["02","Ayuda mediante instrumentos financieros: capital o cuasicapital"]
["03","Ayuda mediante instrumentos financieros: préstamo"]
["04","Ayuda mediante instrumentos financieros: garantía"]
["05","Apoyo mediante instrumentos financieros: Subvenciones en una operación de instrumentos financieros"]
["06","Premio"]

{"sheet":"D. Intervención territorial","index":22,"n_rows":34,"n_cols":3,"rows_kept":34,"cut":false,"hidden":true,"merged":[]}
["CODIGO","D. Aplicación territorial","DESCRIPCION"]
["01","01-Inversión territorial integrada","Barrios urbanos"]
["02","01-Inversión territorial integrada","Ciudades, municipios y extrarradio"]
["03","01-Inversión territorial integrada","Zonas urbanas funcionales"]
["04","01-Inversión territorial integrada","Zonas rurales"]
["05","01-Inversión territorial integrada","Zonas montañosas"]
["06","01-Inversión territorial integrada","Islas y zonas costeras"]
["07","01-Inversión territorial integrada","Zonas con escasa densidad de población"]
["08","01-Inversión territorial integrada","Otros tipos de territorios destinatarios"]
["09","02-Desarrollo local participativo","Barrios urbanos"]
[10,"02-Desarrollo local participativo","Ciudades, municipios y extrarradio"]
[11,"02-Desarrollo local participativo","Zonas urbanas funcionales"]
[12,"02-Desarrollo local participativo","Zonas rurales"]
[13,"02-Desarrollo local participativo","Zonas montañosas"]
[14,"02-Desarrollo local participativo","Islas y zonas costeras"]
[15,"02-Desarrollo local participativo","Zonas con escasa densidad de población"]
[16,"02-Desarrollo local participativo","Otros tipos de territorios destinatarios"]
[17,"03-Otro tipo de instrumento territorial","Barrios urbanos"]
[18,"03-Otro tipo de instrumento territorial","Ciudades, municipios y extrarradio"]
[19,"03-Otro tipo de instrumento territorial","Zonas urbanas funcionales"]
[20,"03-Otro tipo de instrumento territorial","Zonas rurales"]
[21,"03-Otro tipo de instrumento territorial","Zonas montañosas"]
[22,"03-Otro tipo de instrumento territorial","Islas y zonas costeras"]
[23,"03-Otro tipo de instrumento territorial","Zonas con escasa densidad de población"]
[24,"03-Otro tipo de instrumento territorial","Otros tipos de territorios destinatarios"]
[25,"04-Otros enfoques","Barrios urbanos"]
[26,"04-Otros enfoques","Ciudades, municipios y extrarradio"]
[27,"04-Otros enfoques","Zonas urbanas funcionales"]
[28,"04-Otros enfoques","Zonas rurales"]
[29,"04-Otros enfoques","Zonas montañosas"]
[30,"04-Otros enfoques","Islas y zonas costeras"]
[31,"04-Otros enfoques","Zonas con escasa densidad de población"]
[32,"04-Otros enfoques","Otros tipos de territorios destinatarios"]
[33,"04-Otros enfoques","Sin enfoque territorial"]

{"sheet":"D. Actividad económica","index":23,"n_rows":27,"n_cols":2,"rows_kept":27,"cut":false,"hidden":true,"merged":[]}
["CODIGO","D. ACTIVIDAD ECONÓMICA"]
["01","Agricultura y silvicultura"]
["02","Pesca"]
["03","Acuicultura"]
["04","Otros sectores de la economía azul"]
["05","Elaboración de productos alimenticios y bebidas"]
["06","Industria textil y de la confección"]
["07","Fabricación de material de transporte"]
["08","Fabricación de productos informáticos, electrónicos y ópticos"]
["09","Otras industrias manufactureras no especificadas"]
[10,"Construcción"]
[11,"Industrias de extracción (incluida la extracción de productos energéticos)"]
[12,"Energía eléctrica, gas, vapor, agua caliente y aire acondicionado"]
[13,"Suministro de agua, actividades de saneamiento, gestión de residuos y descontaminación"]
[14,"Transporte y almacenamiento"]
[15,"Actividades de información y comunicaciones, incluidas las telecomunicaciones, los servicios de información, la programación de ordenadores, la consultoría y otras actividades relacionadas"]
[16,"Comercio al por mayor y al por menor"]
[17,"Turismo y hostelería"]
[18,"Actividades financieras y de seguros"]
[19,"Actividades inmobiliarias y de alquiler; servicios prestados a las empresas"]
[20,"Administración pública"]
[21,"Enseñanza"]
[22,"Actividades sanitarias"]
[23,"Asistencia social, servicios prestados a la comunidad y servicios sociales y personales"]
[24,"Actividades relacionadas con el medio ambiente y el cambio climático"]
[25,"Artes, espectáculos, industrias creativas y ocio"]
[26,"Otros servicios no especificados"]

{"sheet":"D. Ubicación","index":24,"n_rows":21,"n_cols":2,"rows_kept":21,"cut":false,"hidden":true,"merged":[]}
["CÓDIGO","D. UBICACIÓN"]
["ES11","Galicia"]
["ES12","Principado de Asturias"]
["ES13","Cantabria"]
["ES21","País Vasco"]
["ES22","Comunidad Foral de Navarra"]
["ES23","La Rioja"]
["ES24","Aragón"]
["ES30","Comunidad de Madrid"]
["ES41","Castilla y León"]
["ES42","Castilla La Mancha"]
["ES43","Extremadura"]
["ES51","Cataluña"]
["ES52","Comunitad Valenciana"]
["ES53","Illes Balears"]
["ES61","Andalucía"]
["ES62","Región de Murcia"]
["ES63","Ciudad Autónoma de Ceuta"]
["ES64","Ciudad Autónoma de Melilla"]
["ES70","Canarias"]
["ES","Todas"]

{"sheet":"D. Tema secundario del FSE+","index":25,"n_rows":11,"n_cols":13,"rows_kept":11,"cut":false,"hidden":true,"merged":[]}
["CODIGO","D. Tema secundario del FSE+",null,"CODIGO\nT.SEC 01","CODIGO\nT.SEC 02","CODIGO\nT.SEC 03","CODIGO\nT.SEC 04","CODIGO\nT.SEC 05","CODIGO\nT.SEC 06","CODIGO\nT.SEC 07","CODIGO\nT.SEC 08","CODIGO\nT.SEC 09","CODIGO\nT.SEC 10"]
["01","Contribución a las competencias y empleos verdes y a la economía ecológica"]
["02","Desarrollo de capacidades y empleos digitales",null,"01","02","03","04","05","06","07","08","09","10"]
["03","Inversión en investigación e innovación y especialización inteligente"]
["04","Inversión en pequeñas y medianas empresas (pymes)"]
["05","No discriminación"]
["06","Hacer frente a la pobreza infantil"]
["07","Capacitación de los interlocutores sociales"]
["08","Capacitación de las organizaciones de la sociedad civil"]
["09","No procede"]
["10","Abordar los retos señalados en Semestre Europeo "]

{"sheet":"D. Igualdad de género","index":26,"n_rows":4,"n_cols":2,"rows_kept":4,"cut":false,"hidden":true,"merged":[]}
["CODIGO","D. IGUALDAD DE GÉNERO"]
["01","Proyectos centrados en las cuestiones de género "]
["02","Proyectos que integran la perspectiva de género "]
["03","Neutralidad desde el punto de vista del género"]

{"sheet":"Macrorregionales y Cuencas M","index":27,"n_rows":12,"n_cols":2,"rows_kept":12,"cut":false,"hidden":true,"merged":[]}
["CODE","D. MACRORREGIONAL Y DE LAS CUENCAS MARÍTIMAS\t"]
["11","No contribución a las estrategias macrorregionales y de las cuencas marítimas."]
["10","Estrategia para la Región del Mediterráneo Occidental"]
["09","Mar del Norte"]
["08","Mar Mediterráneo"]
["07","Mar Negro"]
["06","Estrategia para la Región Atlántica"]
["05","Océano Ártico"]
["04","Estrategia para la Región del Danubio"]
["03","Estrategia para la Región del Mar Báltico"]
["02","Estrategia para la Región Alpina"]
["01","Estrategia para la Región del Adriático y del Jónico"]